[Event "SixDays Budapest January-IMA 2023"]
[Site "Budapest"]
[Date "2023.01.25"]
[Round "4.1"]
[White "Ongut, Tamas Gunes"]
[Black "Baski, Barnabas"]
[Result "1-0"]
[ECO "D37"]
[WhiteElo "2340"]
[BlackElo "2188"]
[Annotator "TA"]
[PlyCount "112"]
[EventDate "2023.01.23"]
[EventType "tourn"]
[EventCountry "HUN"]
[SourceTitle "playchess.com"]
[Source "ChessBase"]
[SourceQuality "1"]
[TimeControl "5400+30"]

{[%evp 9,112,29,29,28,25,29,30,27,38,29,32,5,4,1,4,7,32,0,0,0,0,0,0,0,0,0,0,0,6,16,15,19,21,15,25,22,39,29,37,25,33,33,36,33,41,0,0,0,12,12,12,12,47,11,65,54,99,70,53,13,93,93,75,72,94,86,115,115,165,123,120,118,95,93,412,344,412,389,376,381,652,637,1082,1066,891,829,2457,2269,4710,4710,5804,2202,29985,29975,29973,29976,29976,29976,29969,29967,29979,29963,29963,29964,29988]} 1. d4 {[%emt 0:00:27]} d5 {[%emt 0:00:21]} 2. c4 {[%emt 0:00:38]} e6 {[%emt 0:00:20]} 3. Nc3 {[%emt 0:02:25]} Nf6 {[%emt 0:00:12]} 4. Nf3 {[%emt 0:00:53]} a6 {[%emt 0:00:21]} 5. cxd5 {[%emt 0:05:24]} exd5 {[%emt 0:00:07]} 6. Bg5 {[%emt 0:02:33] D37: Queen's Gambit Declined: 5 Bf4.} Be6 {[%emt 0:00:11]} 7. e3 {[%emt 0:00:06]} Nbd7 {[%emt 0:00:26]} 8. Bd3 {[%emt 0:00:07] White has an edge.} Bd6 {[%emt 0:00:29]} 9. O-O {[%emt 0:00:54]} c6 {[%emt 0:01:56] 9...c6 is better than 9...0-0.} 10. Qc2 {[%emt 0:03:33]} Qc7 {[%emt 0:02:13]} 11. Bh4 {[%emt 0:06:23]} h6 {[%emt 0:04:48]} 12. Bg3 {[%emt 0:05:11]} O-O {[%emt 0:07:21]} 13. Na4 {[%emt 0:03:05]} Bxg3 {[%emt 0:10:07]} 14. hxg3 {[%emt 0:00:06]} Rfe8 {[%emt 0:00:12] [#]} 15. Rac1 $146 {[%emt 0:07:54]} ({Predecessor:} 15. b4 Ne4 16. Nc5 Bf5 17. a4 Nf8 18. Rfc1 Bh7 19. Rab1 Nd6 20. Ne5 Bxd3 21. Qxd3 {0-1 Nguyen,T (2282)-Ni,H (2691) Ho Chi Minh City HD Bank op-A 6th 2016 (5)}) 15... Ne4 {[%emt 0:04:22]} 16. Bxe4 {[%emt 0:00:13]} dxe4 {[%emt 0:00:24]} 17. Nd2 {[%emt 0:00:24]} f5 {[%emt 0:01:41]} 18. Nc5 {[%emt 0:02:13]} Nxc5 {[%emt 0:08:47]} (18... Bxa2 $2 19. Nxd7 Qxd7 20. b3 $18) 19. Qxc5 {[%emt 0:00:11]} Qf7 {[%emt 0:07:36]} 20. b3 {[%emt 0:02:14]} Rad8 {[%emt 0:06:01]} 21. Nc4 {[%emt 0:00:10] next Nd6 is good for White.} Bxc4 {[%emt 0:00:15]} 22. bxc4 {[%emt 0:00:17]} g6 {[%emt 0:11:07]} 23. Rfd1 {[%emt 0:02:57]} Rd7 {[%emt 0:01:29]} 24. Rd2 {[%emt 0:01:14]} Red8 {[%emt 0:02:26]} 25. Rcd1 {[%emt 0:00:36]} Kg7 {[%emt 0:06:15]} 26. a4 {[%emt 0:05:36]} Qe7 {[%emt 0:02:04]} 27. Qb6 {[%emt 0:02:24]} h5 {[%emt 0:02:13]} 28. d5 {[%emt 0:02:07][%cal Od5c6] Hoping for dxc6!} cxd5 {[%emt 0:02:08]} 29. Rxd5 {[%emt 0:00:09]} Rxd5 {[%emt 0:01:00]} 30. cxd5 $11 {[%emt 0:04:23][%cal Bc4d5,Bd5d6][%mdl 4128] Endgame d6 is the strong threat. KQR-KQR} Rd6 {[%emt 0:00:37]} 31. Qc5 {[%emt 0:00:24]} Qd7 {[%emt 0:01:52]} ({Black should try} 31... b6 $11 32. Qc4 a5) 32. a5 {[%emt 0:00:07]} Kh7 {[%emt 0:02:00]} 33. Rd4 {[%emt 0:00:16]} Qe7 {[%emt 0:01:44]} 34. Qb4 {[%emt 0:10:37] Rc4 would be deadly.} Rd7 {[%emt 0:01:37]} (34... Qd7 $11 {keeps the balance.}) 35. d6 $16 {[%emt 0:00:14]} Qe6 {[%emt 0:00:16]} 36. Qc5 {[%emt 0:00:24]} Kg7 {[%emt 0:01:09]} 37. Rd5 {[%emt 0:02:15]} Kf7 {[%emt 0:02:54]} 38. f3 {[%emt 0:02:54]} exf3 {[%emt 0:02:47]} (38... Kg7 $16) 39. gxf3 $18 {[%emt 0:00:07]} Qf6 {[%emt 0:00:52]} 40. Rd4 {[%emt 0:00:23]} (40. Qc8 {looks sharper.} Qe6 41. Kg2 Kg7 42. Qc5) 40... Qe6 {[%emt 0:01:13]} 41. Rd2 {[%emt 0:04:25]} Qf6 $2 {[%emt 0:01:50][%mdl 8192] This costs Black the game.} (41... Kg7 $16) 42. Qc8 {[%emt 0:02:37]} Qd8 {[%emt 0:00:33]} 43. Qc4+ {[%emt 0:00:21]} Kg7 {[%emt 0:00:19]} 44. Qe6 {[%emt 0:00:10]} Qc8 $2 {[%emt 0:02:27]} (44... Kh6 45. Qe5 Qf8) 45. Kg2 {[%emt 0:00:41]} Qc6 {[%emt 0:00:37]} 46. e4 {[%emt 0:01:35]} fxe4 {[%emt 0:00:48]} 47. fxe4 {[%emt 0:00:07]} Rf7 {[%emt 0:00:27]} 48. Qe5+ {[%emt 0:06:25]} Kh7 {[%emt 0:00:19]} 49. Qd5 {[%emt 0:01:37]} Qd7 {[%emt 0:00:45]} 50. Rc2 {[%emt 0:02:21] Active counter play!} (50. Qxf7+ $142 Qxf7 51. d7) 50... Qe8 {[%emt 0:00:47] [#]} 51. Qxf7+ $3 {[%emt 0:02:43][%mdl 512] White mates.} Qxf7 {[%emt 0:00:02] KQ-KR} 52. Rc7 {[%emt 0:00:07]} Kg8 {[%emt 0:00:27]} 53. Rxf7 {[%emt 0:00:26]} Kxf7 {[%emt 0:00:06] [#]} 54. g4 $1 {[%emt 0:00:07][%cal Bg3g4,Bg4g5][%mdl 544]} Ke6 {[%emt 0:00:38] [#]} (54... h4 55. g5) 55. e5 $1 {[%emt 0:00:07][%mdl 512]} h4 {[%emt 0:00:10] [#]} 56. g5 $1 {[%emt 0:00:06]} Kd5 {Weighted Error Value: White=0.09 (flawless) /Black=0.47} 1-0

[Event "SixDays Budapest January-IMA 2023"]
[Site "Budapest"]
[Date "2023.01.25"]
[Round "4.2"]
[White "Orso, Miklos"]
[Black "Magold, Filip"]
[Result "0-1"]
[ECO "A06"]
[WhiteElo "2256"]
[BlackElo "2230"]
[Annotator "TA"]
[PlyCount "108"]
[EventDate "2023.01.23"]
[EventType "tourn"]
[EventCountry "HUN"]
[SourceTitle "playchess.com"]
[Source "ChessBase"]
[SourceQuality "1"]
[TimeControl "5400+30"]

{[%evp 16,108,7,0,0,7,18,0,0,9,24,23,7,-30,0,0,0,0,4,-19,-18,-12,-20,-16,-5,-13,-8,0,0,-22,0,0,0,0,0,0,4,0,76,83,87,87,94,48,119,102,119,103,167,129,135,140,176,112,286,291,255,229,219,206,194,63,111,106,375,291,243,74,294,0,0,0,7,0,0,0,-12,-1266,-1176,-1113,-1085,-1012,-935,-1303,-444,-416,-307,-5289,-3044,-12839,-12839,-12839,-12840,-12845,-12840]} 1. Nf3 {[%emt 0:00:04]} d5 {[%emt 0:00:19]} 2. b3 {[%emt 0:00:12]} Nf6 {[%emt 0:00:21]} 3. Bb2 {[%emt 0:00:07]} Bf5 {[%emt 0:01:22]} 4. d3 {[%emt 0:01:16]} e6 {[%emt 0:01:24]} 5. g3 {[%emt 0:01:15]} Nbd7 {[%emt 0:01:31]} 6. Bg2 {[%emt 0:00:14]} Be7 {[%emt 0:01:12]} 7. O-O {[%emt 0:00:22]} O-O {[%emt 0:00:41]} 8. Nbd2 {[%emt 0:00:08]} h6 {[%emt 0:02:45]} 9. Qe1 {[%emt 0:01:33]} c6 {[%emt 0:02:12] A07: Réti Opening: New York and Capablanca Systems.} 10. e4 {[%emt 0:00:21]} Bh7 {[%emt 0:00:07]} 11. Qe2 {[%emt 0:01:50]} a5 {[%emt 0:03:14] The position is equal.} 12. a4 {[%emt 0:06:08]} Qc7 {[%emt 0:05:45] [#]} 13. Rfc1 $146 {[%emt 0:13:39]} ({Predecessor:} 13. Kh1 Nc5 14. Ne5 Na6 15. f4 Nb4 16. Rac1 Rad8 17. g4 Nd7 18. Nxd7 Qxd7 19. f5 dxe4 20. Nxe4 exf5 21. gxf5 Bxf5 {1-0 Fernandez de La Vara,A (2462)-Nasuta,G (2531) Titled Tuesday intern op 20th Sep Late blitz 2022 (10)}) 13... Rfc8 {[%emt 0:08:16]} 14. Nd4 {[%emt 0:11:31]} dxe4 {[%emt 0:07:21]} 15. dxe4 {[%emt 0:00:51]} e5 {[%emt 0:03:05]} 16. Nf5 {[%emt 0:01:23]} Bc5 {[%emt 0:02:52]} 17. Ba3 {[%emt 0:01:44]} Bxa3 {[%emt 0:07:58]} 18. Rxa3 {[%emt 0:00:02]} Re8 {[%emt 0:05:34] Wards off Ne7+} 19. Raa1 {[%emt 0:00:40]} Bxf5 {[%emt 0:05:56]} 20. exf5 {[%emt 0:00:10]} e4 {[%emt 0:01:51]} 21. Re1 {[%emt 0:02:53][%cal Rd2e4]} Nc5 {[%emt 0:05:32]} 22. Rad1 {[%emt 0:05:37]} Rad8 {[%emt 0:02:00]} (22... Re5 $5) 23. Nf1 {[%emt 0:04:37]} Re5 {[%emt 0:05:42]} 24. Rxd8+ {[%emt 0:02:13]} Qxd8 {[%emt 0:00:01]} 25. Rd1 {[%emt 0:00:21]} Qb8 {[%emt 0:02:07]} 26. Ne3 {[%emt 0:01:56]} b5 {[%emt 0:01:00]} (26... Nd5 $11 {remains equal.}) 27. Qd2 {[%emt 0:03:40]} Nb7 {[%emt 0:01:10]} 28. Qd4 {[%emt 0:03:45]} Qc7 {[%emt 0:03:10]} 29. h3 {[%emt 0:04:20]} (29. Qa7 $16) 29... c5 {[%emt 0:06:23]} (29... bxa4 $14 30. bxa4 Nc5) 30. Qc3 $16 {[%emt 0:05:02]} bxa4 {[%emt 0:01:16]} 31. bxa4 {[%emt 0:00:30]} c4 {[%emt 0:00:50]} 32. g4 {[%emt 0:01:06]} (32. Nxc4 Rc5 33. Bf1 Nd6 34. Rxd6 Qxd6 $17) (32. Qxc4 $6 Qxc4 33. Nxc4 Rxf5 $14) 32... Rc5 {[%emt 0:00:22]} 33. Bf1 {[%emt 0:05:14]} Qc6 {[%emt 0:03:58] [#]} 34. Qb2 {[%emt 0:08:28]} (34. Bxc4 $6 Nd6 35. Rd4 Kh7 $16) (34. Nxc4 $6 Qxa4 35. Qg3 Rxc4 36. Bxc4 Qxc4 37. Qb8+ Kh7 38. Qxb7 Qe2 $11) (34. Qd4 $1 $18) 34... h5 $2 {[%emt 0:03:06]} (34... Nd5 $16) 35. Bxc4 $18 {[%emt 0:03:57]} hxg4 {[%emt 0:01:38]} 36. Bb5 {[%emt 0:00:09]} Qb6 {[%emt 0:01:26]} 37. hxg4 {[%emt 0:00:37]} (37. Nxg4 Rxf5 38. Qd4 Qc7 $11) 37... Nd6 {[%emt 0:00:07]} 38. Rb1 {[%emt 0:02:25]} (38. Qa3 $18) 38... Nxb5 {[%emt 0:01:13]} (38... Nd5 $14) 39. axb5 $16 {[%emt 0:03:26] Hoping for Qd4.} Nd7 $2 {[%emt 0:01:30][%mdl 8192]} (39... Nd5 $16) 40. c4 {[%emt 0:01:22]} Ne5 {[%emt 0:00:29] [#]} 41. Qe2 {[%emt 0:00:27]} (41. Qc2 $1 $18 {[%cal Rc2e4] and the rest is easy.}) 41... a4 $2 {[%emt 0:01:50]} (41... Qh6 $2 42. b6 Rc8 43. Kg2 $18 (43. b7 Rb8 $11)) (41... Qd6 $16 42. Rd1 Qh6) 42. Kg2 $2 {[%emt 0:00:55]} (42. Qc2 $18) 42... Nd3 $1 $11 {[%emt 0:00:47]} 43. Qf1 {[%emt 0:03:31]} ({But not} 43. Nd5 $2 Rxd5 44. Qe3 Rd4 $19) 43... a3 {[%emt 0:00:59][%cal Ba4a3,Ba3a2][%mdl 32]} 44. Nd5 {[%emt 0:00:46]} Qb8 {[%emt 0:00:58] And now ...a2 would win.} 45. b6 {[%emt 0:00:26] Threatens to win with b7.} Rxc4 {[%emt 0:00:51]} 46. b7 $2 {[%emt 0:00:43][%mdl 8192]} (46. Qe2 $11) 46... a2 $19 {[%emt 0:00:23][%mdl 64] Deflection} 47. Ra1 {[%emt 0:01:02]} Qxb7 {[%emt 0:00:08]} 48. Ne3 {[%emt 0:00:04]} Ra4 {[%emt 0:00:10]} 49. Qd1 {[%emt 0:00:42]} Ra8 {[%emt 0:00:55]} (49... Qb2 $142 50. Qf1 Nxf2) 50. Qc2 {[%emt 0:00:28]} Qb6 {[%emt 0:00:53]} 51. Nd5 $2 {[%emt 0:00:42]} (51. g5) 51... Qd4 {[%emt 0:00:22][%csl LRa1,LRd5] Black is clearly winning.} 52. Nc3 {[%emt 0:01:05]} e3 {[%emt 0:00:33]} 53. fxe3 {[%emt 0:00:29]} Qxg4+ {[%emt 0:00:01]} 54. Kh2 {[%emt 0:00:24]} Ra6 {[%emt 0:00:07] Artfully played by Magold.   Weighted Error Value: White=0.71/Black=0.33} 0-1

[Event "SixDays Budapest January-IMA 2023"]
[Site "Budapest"]
[Date "2023.01.25"]
[Round "4.3"]
[White "Ihnat, Marek"]
[Black "Heimisson, Hilmir Freyr"]
[Result "0-1"]
[ECO "C03"]
[WhiteElo "2138"]
[BlackElo "2321"]
[Annotator "TA"]
[PlyCount "134"]
[EventDate "2023.01.23"]
[EventType "tourn"]
[EventCountry "HUN"]
[SourceTitle "playchess.com"]
[Source "ChessBase"]
[SourceQuality "1"]
[TimeControl "5400+30"]

{[%evp 9,134,0,33,9,11,-5,0,-12,-7,0,8,-45,-57,-39,-61,-55,-51,-78,-79,-77,-81,-102,-42,-67,-50,-93,-78,-108,-107,-109,-113,-113,-117,-175,-170,-361,-354,-404,-399,-402,-354,-353,-345,-358,-345,-342,-273,-363,-368,-358,-380,-361,-337,-295,-269,-431,-294,-297,-243,-527,-256,-279,-266,-403,-260,-229,-86,-118,-81,-75,-85,-85,-66,-150,-33,-26,-26,-33,-33,-33,-33,-47,-42,-252,0,-289,-238,-212,0,0,0,-54,-54,-536,-536,-464,-395,-369,-362,-550,-470,-739,-509,-12845,-1063,-829,-526,-729,-705,-12846,-12847,-12847,-12847,-12848,-12847,-12849,-12849,-27999,-27999,-27999,-27999,-27999,-27999,-27999,-27999,-27999,-27999]} 1. e4 {[%emt 0:00:06]} e6 {[%emt 0:01:36]} 2. d4 {[%emt 0:00:09]} d5 {[%emt 0:00:06]} 3. Nd2 {[%emt 0:00:13]} Be7 {[%emt 0:01:02]} 4. e5 {[%emt 0:02:08]} c5 {[%emt 0:00:39]} 5. Qg4 {[%emt 0:02:21]} g5 {[%emt 0:00:13]} 6. dxc5 {[%emt 0:05:59] C03: French Tarrasch: Unusual Black 3rd moves.} h5 {[%emt 0:03:08]} 7. Bb5+ {[%emt 0:04:31]} Bd7 {[%emt 0:01:38]} 8. Qe2 {[%emt 0:08:51] [#] The position is equal.} Bxb5 $146 {[%emt 0:05:10]} ({Predecessor:} 8... Qc7 9. Nb3 Bxb5 10. Qxb5+ Nc6 11. f4 O-O-O 12. Nf3 g4 13. Nfd4 Nxd4 14. Nxd4 Bxc5 {0-1 Adams,M (2716)-Morozevich,A (2723) Frankfurt-West Masters rapid 1999 (10)}) 9. Qxb5+ {[%emt 0:00:08]} Qd7 {[%emt 0:00:15]} 10. Qxd7+ {[%emt 0:10:20]} ({White should try} 10. Qe2 $11) 10... Nxd7 $15 {[%emt 0:00:25][%cal Bb8d7,Bd7e5,Be5d3][%mdl 32]} 11. c4 {[%emt 0:00:15]} Nxe5 {[%emt 0:21:40]} 12. cxd5 {[%emt 0:06:57]} Nd3+ {[%emt 0:00:07]} 13. Ke2 {[%emt 0:02:46]} Nf4+ {[%emt 0:00:48]} 14. Kf1 {[%emt 0:12:20]} Nxd5 {[%emt 0:00:06][%cal Og8f6] Black is more active.} 15. Ne4 {[%emt 0:00:44]} f6 {[%emt 0:08:56]} (15... g4 $17 {White must now prevent ...Ngf6.} 16. Ne2 Ngf6 17. Nxf6+ Bxf6) 16. Nf3 {[%emt 0:01:53]} Nh6 {[%emt 0:12:57]} 17. Nd4 {[%emt 0:03:39]} Nf5 {[%emt 0:06:05]} 18. Nxf5 {[%emt 0:15:30]} (18. Nxe6 $2 Kd7 19. h4 Kxe6 $19) 18... exf5 {[%emt 0:00:05]} 19. Nd6+ {[%emt 0:00:13]} Bxd6 {[%emt 0:05:31]} 20. cxd6 {[%emt 0:00:08]} Kd7 {[%emt 0:01:09]} 21. b3 {[%emt 0:00:51]} (21. h4 $17) 21... Rac8 $19 {[%emt 0:02:41]} (21... Kxd6 22. h4 $17) 22. Ba3 $2 {[%emt 0:02:31]} (22. h4 {is a better defense.} g4 23. g3) 22... Rc2 {[%emt 0:03:33]} 23. g3 {[%emt 0:01:30]} Re8 {[%emt 0:02:49]} 24. Rd1 {[%emt 0:01:11]} Nc3 {[%emt 0:04:51]} (24... Rxa2 25. Rxd5 Rxa3 26. Rxf5 $17) 25. Rc1 {[%emt 0:02:42]} Ree2 {[%emt 0:02:59]} (25... Rxa2 26. Rxc3 Rxa3 27. Kg2 $15) (25... Rxc1+ 26. Bxc1 Re2 27. a4 $17) 26. Rxc2 {[%emt 0:00:22]} Rxc2 {[%emt 0:00:05][%mdl 4096] Endgame KRB-KRN} 27. Kg2 {[%emt 0:02:27]} Rxa2 {[%emt 0:02:03]} ({Inferior is} 27... Nxa2 28. Re1 $15) 28. Bb4 {[%emt 0:06:50]} Nd5 {[%emt 0:01:11]} 29. Bc5 {[%emt 0:01:00]} b6 {[%emt 0:00:36]} 30. Rd1 {[%emt 0:00:17]} Nc3 {[%emt 0:03:20]} 31. Rd3 {[%emt 0:00:14]} Ne4 {[%emt 0:00:14]} 32. Bd4 {[%emt 0:00:23]} (32. Be3) 32... Rc2 {[%emt 0:03:03] aiming for ...Rd2.} (32... Kxd6 33. Bxb6+ Ke6 34. Be3 $17) 33. h3 {[%emt 0:01:15]} g4 {[%emt 0:02:08]} ({Weaker is} 33... Nxd6 34. Bxf6 g4 35. Be5 $17) 34. h4 {[%emt 0:00:43]} (34. hxg4 {might work better.} hxg4 35. Be3) 34... Nxd6 {[%emt 0:02:21]} ({Not} 34... Kxd6 35. Bxb6+ Ke6 36. Bxa7 $17) (34... Rd2 $142 35. Rxd2 Nxd2) 35. Bxf6 {[%emt 0:00:47]} Ke6 {[%emt 0:00:05] Prevents Be5.} 36. Bd4 {[%emt 0:02:34]} (36. Bg5 $142) 36... Ne4 {[%emt 0:00:13] And now ...Rd2 would win.} 37. Be3 {[%emt 0:00:49] [#] Inhibits Rd2.} Rc8 {[%emt 0:02:17] Wards off Rd8} (37... f4 $1 $19 {[%cal Rf4e3] is more deadly.} 38. gxf4 Nd6) 38. b4 {[%emt 0:01:25]} Nf6 {[%emt 0:00:39]} 39. Ra3 {[%emt 0:01:12]} Rc7 {[%emt 0:00:01]} 40. Bf4 {[%emt 0:00:11]} Rd7 {[%emt 0:02:53]} 41. Bb8 {[%emt 0:00:22]} (41. Re3+ $15 Ne4 42. b5) 41... Rd4 {[%emt 0:00:37]} (41... Rb7 $17 42. Bf4 Kd5) 42. b5 $15 {[%emt 0:01:11]} Rb4 {[%emt 0:00:24]} 43. Rc3 {[%emt 0:01:24]} Rxb5 {[%emt 0:00:21]} 44. Rc6+ {[%emt 0:00:22]} Ke7 {[%emt 0:00:33]} 45. Bxa7 {[%emt 0:00:35]} Nd7 {[%emt 0:00:36]} 46. Rc8 $2 {[%emt 0:00:39]} (46. Rh6 $15) 46... Kd6 $2 {[%emt 0:00:42]} ({Better is} 46... Ra5 $19 47. Bb8 b5) 47. Rh8 $2 {[%emt 0:00:29][%mdl 8192]} (47. Bb8+ $1 $11 {and White has nothing to worry.} Kd5 48. Bf4) 47... Kc7 {[%emt 0:00:29]} 48. Rxh5 {[%emt 0:00:14]} Kb7 $2 {[%emt 0:00:25]} (48... Ra5 $19 49. Kf1 Rxa7 50. Rxf5 Kd6) 49. Rh7 $11 {[%emt 0:00:34]} Rd5 {[%emt 0:00:01]} 50. Bxb6 {[%emt 0:00:32]} Kxb6 {[%emt 0:00:00] KRN-KR} 51. Re7 {[%emt 0:00:34][%mdl 8192] Black continues to play with concentration.} (51. Rf7 $1 $15) 51... Ne5 $19 {[%emt 0:00:52] [#] Strongly threatening ...Nf3.} 52. Kf1 {[%emt 0:00:37]} Kc6 {[%emt 0:00:35] ...Nf3 is the strong threat.} 53. Ra7 {[%emt 0:00:23]} Nf3 {[%emt 0:00:43] Hoping for ...Re5.} 54. Ra6+ {[%emt 0:00:29]} (54. Ke2 $142) 54... Kd7 {[%emt 0:00:10]} 55. Ra2 {[%emt 0:00:26]} (55. Ke2 $142 Rd4 56. Ke3) 55... Ke6 {[%emt 0:00:37] ...Re5 would be deadly.} 56. Re2+ {[%emt 0:00:10]} (56. Ke2 $142 f4 57. Ra1) 56... Kf6 {[%emt 0:00:14]} (56... Re5 $142 57. Rxe5+ Kxe5) 57. Ra2 {[%emt 0:00:28]} Kg6 {[%emt 0:00:23]} 58. Ra6+ {[%emt 0:00:18]} Kh5 {[%emt 0:00:05]} 59. Rf6 {[%emt 0:01:01]} Re5 {[%emt 0:00:23] ( -> ...Re1+)} 60. Kg2 {[%emt 0:00:19]} Re1 {[%emt 0:02:06][%csl Gf3][%cal Re1g1]} 61. Rxf5+ {[%emt 0:00:03]} Kh6 {[%emt 0:00:07][%csl Gf3][%cal Re1g1]} 62. Rxf3 {[%emt 0:00:21]} gxf3+ {[%emt 0:00:05]} 63. Kxf3 {[%emt 0:00:06] KR-K3P} Kh5 {[%emt 0:00:07] Black mates.} 64. Kf4 {[%emt 0:00:15]} Re8 {[%emt 0:01:05]} 65. Kf3 {[%emt 0:00:10]} Rf8+ {[%emt 0:00:21]} 66. Ke3 {[%emt 0:01:51]} Kg4 {[%emt 0:00:08]} 67. f4 {[%emt 0:01:01]} Kxg3 {[%emt 0:00:24] Weighted Error Value: White=0.80/Black=0.61} 0-1

[Event "SixDays Budapest January-IMA 2023"]
[Site "Budapest"]
[Date "2023.01.25"]
[Round "4.4"]
[White "Leszko, Bence"]
[Black "Szeberenyi, Adam"]
[Result "1/2-1/2"]
[ECO "E11"]
[WhiteElo "2298"]
[BlackElo "2331"]
[Annotator "TA"]
[PlyCount "44"]
[EventDate "2023.01.23"]
[EventType "tourn"]
[EventCountry "HUN"]
[SourceTitle "playchess.com"]
[Source "ChessBase"]
[SourceQuality "1"]
[TimeControl "5400+30"]

{[%evp 13,44,11,10,4,13,0,0,0,2,0,16,13,10,5,11,12,11,0,6,0,0,-20,-15,-30,-15,-15,-13,-16,-12,-17,0,-8,0]} 1. d4 {[%emt 0:17:24]} Nf6 {[%emt 0:00:54]} 2. c4 {[%emt 0:00:08]} e6 {[%emt 0:00:51]} 3. Nf3 {[%emt 0:00:06]} Bb4+ {[%emt 0:01:53]} 4. Nbd2 {[%emt 0:00:10]} a5 {[%emt 0:00:08]} 5. g3 {[%emt 0:00:14]} b6 {[%emt 0:00:07]} 6. Bg2 {[%emt 0:00:10]} Bb7 {[%emt 0:00:07]} 7. O-O {[%emt 0:00:11]} O-O {[%emt 0:00:34]} 8. Qc2 {[%emt 0:00:30] E16: Queen's Indian: 4 g3 Bb7 5 Bg2 Bb4+.} Bxd2 {[%emt 0:04:35]} 9. Bxd2 {[%emt 0:00:27]} Be4 {[%emt 0:00:14]} 10. Qc3 {[%emt 0:00:52]} d6 {[%emt 0:02:57]} 11. Rac1 {[%emt 0:04:30]} Nbd7 {[%emt 0:00:57]} 12. Rfd1 {[%emt 0:00:28]} Qe7 {[%emt 0:00:37]} 13. Bg5 {[%emt 0:00:55][%cal Of3e5]} h6 {[%emt 0:05:03]} 14. Bxf6 {[%emt 0:00:18]} Nxf6 {[%emt 0:00:05] [#]} (14... Qxf6 {seems wilder.} 15. Ne5 dxe5 16. dxe5 Nxe5 17. Bxe4 Rad8) 15. Qe3 $146 {[%emt 0:01:47]} ({Predecessor:} 15. Nd2 Bxg2 16. Kxg2 c5 17. e4 Qb7 18. d5 Rae8 19. Qd3 Re7 20. dxe6 fxe6 21. Re1 {½-½ Seo,J (2386)-Blomqvist,E (2496) Stockholm Challenge 2019 (4)}) 15... Rfd8 {[%emt 0:08:29]} 16. b3 {[%emt 0:01:09]} c5 {[%emt 0:08:11]} 17. Rd2 {[%emt 0:01:57]} Rac8 {[%emt 0:10:43][%cal Ba8c8,Bc8c5,Bc5d5][%mdl 32]} 18. Nh4 {[%emt 0:02:43]} Bxg2 {[%emt 0:01:49]} 19. Nxg2 {[%emt 0:00:31] The position is equal.} d5 {[%emt 0:01:12]} 20. dxc5 {[%emt 0:08:34]} Rxc5 {[%emt 0:03:36]} 21. Rcd1 {[%emt 0:00:15]} Rd7 {[%emt 0:04:42]} 22. cxd5 {[%emt 0:04:33]} Rcxd5 {[%emt 0:03:03] A rather calm draw.   Weighted Error Value: White=0.05 (flawless) /Black=0.05 (flawless)} 1/2-1/2